[Event "*** Qualifier 3: Titled Tuesday 3|2 Blitz"]
[Site "Chess.com"]
[Date "2017.04.18"]
[Round "8"]
[White "Roachelley"]
[Black "DavidMarkosyan"]
[Result "1-0"]
[WhiteElo "2171"]
[BlackElo "2337"]
[TimeControl "180+2"]
[EndTime "14:47:09 PDT"]
[Termination "Roachelley won by checkmate"]

1. d4 {[%clk 0:03:01.9]} 1... Nf6 {[%clk 0:03:00.4]} 2. c4 {[%clk 0:03:02.5]}
2... g6 {[%clk 0:03:01.3]} 3. Nc3 {[%clk 0:03:02.1]} 3... Bg7 {[%clk 0:03:02.5]}
4. g3 {[%clk 0:03:02.5]} 4... O-O {[%clk 0:03:02.1]} 5. Bg2 {[%clk 0:03:03.5]}
5... d6 {[%clk 0:03:03.8]} 6. Nf3 {[%clk 0:03:03.7]} 6... Nbd7 {[%clk
0:03:05.4]} 7. O-O {[%clk 0:02:59.4]} 7... e5 {[%clk 0:03:06.1]} 8. e4 {[%clk
0:02:48.4]} 8... c6 {[%clk 0:03:06.3]} 9. Be3 {[%clk 0:02:48.4]} 9... Ng4 {[%clk
0:03:04.6]} 10. Bg5 {[%clk 0:02:37.1]} 10... Qb6 {[%clk 0:03:05.3]} 11. d5
{[%clk 0:02:28.1]} 11... c5 {[%clk 0:02:49.6]} 12. h3 {[%clk 0:02:17.6]} 12...
Ngf6 {[%clk 0:02:49.1]} 13. Qc2 {[%clk 0:02:16.9]} 13... h6 {[%clk 0:02:45.2]}
14. Be3 {[%clk 0:02:15.1]} 14... Qd8 {[%clk 0:02:44]} 15. Ne1 {[%clk 0:02:15.7]}
15... Ne8 {[%clk 0:02:39.4]} 16. Nd3 {[%clk 0:02:16.4]} 16... a6 {[%clk
0:02:27.7]} 17. a3 {[%clk 0:02:17]} 17... Rb8 {[%clk 0:02:26.7]} 18. a4 {[%clk
0:02:06.9]} 18... b6 {[%clk 0:02:24.6]} 19. Rae1 {[%clk 0:01:59.7]} 19... Nef6
{[%clk 0:02:18]} 20. Kh2 {[%clk 0:01:56.7]} 20... Nh5 {[%clk 0:02:15.7]} 21. Qd2
{[%clk 0:01:43.2]} 21... Kh7 {[%clk 0:02:14.4]} 22. Bf3 {[%clk 0:01:31.6]} 22...
Nhf6 {[%clk 0:02:10.4]} 23. Bd1 {[%clk 0:01:26]} 23... Ng8 {[%clk 0:02:06.7]}
24. Bc2 {[%clk 0:01:22.5]} 24... Ngf6 {[%clk 0:01:41]} 25. f4 {[%clk 0:01:21.9]}
25... exf4 {[%clk 0:01:40.5]} 26. gxf4 {[%clk 0:01:21.5]} 26... Nh5 {[%clk
0:01:38.3]} 27. Rg1 {[%clk 0:01:07.5]} 27... Re8 {[%clk 0:01:29.1]} 28. Qf2
{[%clk 0:00:48.2]} 28... Bxc3 {[%clk 0:01:15.3]} 29. bxc3 {[%clk 0:00:50.1]}
29... Rxe4 {[%clk 0:01:11.2]} 30. Ne5 {[%clk 0:00:46]} 30... Rxe3 {[%clk
0:00:58.2]} 31. Rxe3 {[%clk 0:00:35.2]} 31... dxe5 {[%clk 0:00:58.5]} 32. fxe5
{[%clk 0:00:36]} 32... Qe7 {[%clk 0:00:42.2]} 33. e6 {[%clk 0:00:35.3]} 33...
Ndf6 {[%clk 0:00:27.9]} 34. exf7 {[%clk 0:00:30.9]} 34... Qd6+ {[%clk
0:00:28.8]} 35. Kh1 {[%clk 0:00:31.1]} 35... Bf5 {[%clk 0:00:29.7]} 36. Bxf5
{[%clk 0:00:31.1]} 36... gxf5 {[%clk 0:00:30.5]} 37. Qxf5+ {[%clk 0:00:32.3]}
37... Kh8 {[%clk 0:00:30]} 38. Qg6 {[%clk 0:00:24.1]} 38... Qf4 {[%clk
0:00:30.3]} 39. Re8+ {[%clk 0:00:23.6]} 39... Rxe8 {[%clk 0:00:28.7]} 40.
fxe8=Q+ {[%clk 0:00:25.5]} 40... Nxe8 {[%clk 0:00:29.7]} 41. Qg8# {[%clk
0:00:26.7]} 1-0

[Event "*** Qualifier 3: Titled Tuesday 3|2 Blitz"]
[Site "Chess.com"]
[Date "2017.04.18"]
[Round "8"]
[White "aRk_iN"]
[Black "CM_FM_IM_GM"]
[Result "1-0"]
[WhiteElo "2104"]
[BlackElo "2007"]
[TimeControl "180+2"]
[EndTime "14:47:11 PDT"]
[Termination "aRk_iN won by resignation"]

1. e4 {[%clk 0:03:02]} 1... c6 {[%clk 0:02:58.3]} 2. d4 {[%clk 0:03:02.7]} 2...
d5 {[%clk 0:02:58.9]} 3. Nc3 {[%clk 0:03:04.1]} 3... dxe4 {[%clk 0:02:59.8]} 4.
Nxe4 {[%clk 0:03:05.8]} 4... Nd7 {[%clk 0:03:01.3]} 5. Ng5 {[%clk 0:03:06.6]}
5... Ngf6 {[%clk 0:03:01.2]} 6. Bd3 {[%clk 0:03:07.4]} 6... e6 {[%clk
0:02:50.8]} 7. N1f3 {[%clk 0:03:07.6]} 7... Bd6 {[%clk 0:02:46.8]} 8. Qe2 {[%clk
0:03:08.2]} 8... O-O {[%clk 0:02:46.6]} 9. O-O {[%clk 0:03:03.9]} 9... h6 {[%clk
0:02:45.7]} 10. Ne4 {[%clk 0:03:04.1]} 10... Nxe4 {[%clk 0:02:45.3]} 11. Qxe4
{[%clk 0:03:05.8]} 11... Nf6 {[%clk 0:02:45.9]} 12. Qh4 {[%clk 0:03:06.8]} 12...
Nh7 {[%clk 0:02:38]} 13. Qe4 {[%clk 0:02:22]} 13... Nf6 {[%clk 0:02:35.7]} 14.
Qh4 {[%clk 0:02:18]} 14... Nh7 {[%clk 0:02:36.3]} 15. Qxd8 {[%clk 0:02:12.4]}
15... Rxd8 {[%clk 0:02:36.7]} 16. Be3 {[%clk 0:02:04.7]} 16... b6 {[%clk
0:02:36.9]} 17. Ne5 {[%clk 0:01:52.1]} 17... Bb7 {[%clk 0:02:32.4]} 18. Be4
{[%clk 0:01:51.4]} 18... Rac8 {[%clk 0:02:30.3]} 19. c3 {[%clk 0:01:43.6]} 19...
Nf6 {[%clk 0:02:30.7]} 20. Bf3 {[%clk 0:01:44.6]} 20... Ba8 {[%clk 0:02:28]} 21.
a4 {[%clk 0:01:31.2]} 21... a5 {[%clk 0:02:24.2]} 22. Nc4 {[%clk 0:01:13.7]}
22... Bc7 {[%clk 0:02:21.4]} 23. d5 {[%clk 0:01:06.1]} 23... exd5 {[%clk
0:02:17]} 24. Nxb6 {[%clk 0:01:05.7]} 24... Rb8 {[%clk 0:02:08.4]} 25. Nxa8
{[%clk 0:01:06.1]} 25... Rxa8 {[%clk 0:02:10.3]} 26. b4 {[%clk 0:00:27]} 26...
Be5 {[%clk 0:02:06.2]} 27. Ra3 {[%clk 0:00:21.2]} 27... axb4 {[%clk 0:02:03.2]}
28. cxb4 {[%clk 0:00:23.1]} 28... Bd6 {[%clk 0:01:59.9]} 29. Rb1 {[%clk
0:00:22.3]} 29... Rdb8 {[%clk 0:01:59.3]} 30. Bd2 {[%clk 0:00:23.8]} 30... Rb7
{[%clk 0:01:44.5]} 31. Raa1 {[%clk 0:00:24.9]} 31... Rba7 {[%clk 0:01:40.1]} 32.
a5 {[%clk 0:00:25.5]} 32... Rb8 {[%clk 0:01:32.8]} 33. Be3 {[%clk 0:00:23.4]}
33... Raa8 {[%clk 0:01:30]} 34. Bd2 {[%clk 0:00:19.7]} 34... Be5 {[%clk
0:01:27.3]} 35. Ra2 {[%clk 0:00:20.5]} 35... Bc7 {[%clk 0:01:25.9]} 36. Rc1
{[%clk 0:00:21.4]} 36... Bd6 {[%clk 0:01:16]} 37. Rxc6 {[%clk 0:00:21.3]} 37...
Bxb4 {[%clk 0:01:17.2]} 38. Bxb4 {[%clk 0:00:21.9]} 38... Rxb4 {[%clk
0:01:18.1]} 39. h3 {[%clk 0:00:23.5]} 39... Rb1+ {[%clk 0:01:13.3]} 40. Kh2
{[%clk 0:00:24.5]} 40... Rb5 {[%clk 0:01:09.4]} 41. a6 {[%clk 0:00:25.4]} 41...
d4 {[%clk 0:01:01.9]} 42. Rxf6 {[%clk 0:00:21.7]} 42... gxf6 {[%clk 0:00:57.5]}
43. Bxa8 {[%clk 0:00:22.7]} 43... d3 {[%clk 0:00:59]} 44. Bf3 {[%clk 0:00:23]}
1-0

[Event "*** Qualifier 3: Titled Tuesday 3|2 Blitz"]
[Site "Chess.com"]
[Date "2017.04.18"]
[Round "8"]
[White "ChristopherYoo"]
[Black "Rogue_King"]
[Result "1-0"]
[WhiteElo "2268"]
[BlackElo "2115"]
[TimeControl "180+2"]
[EndTime "14:47:27 PDT"]
[Termination "ChristopherYoo won by checkmate"]

1. e4 {[%clk 0:03:02]} 1... c6 {[%clk 0:03:01.1]} 2. d4 {[%clk 0:03:02.7]} 2...
d5 {[%clk 0:03:03]} 3. Nc3 {[%clk 0:03:04]} 3... dxe4 {[%clk 0:03:04]} 4. Nxe4
{[%clk 0:03:05]} 4... Bf5 {[%clk 0:03:05.6]} 5. Ng3 {[%clk 0:03:05.8]} 5... Bg6
{[%clk 0:03:07.2]} 6. h4 {[%clk 0:03:06.6]} 6... h6 {[%clk 0:03:08.7]} 7. Nf3
{[%clk 0:03:06.8]} 7... Nd7 {[%clk 0:03:08.7]} 8. h5 {[%clk 0:03:07.9]} 8... Bh7
{[%clk 0:03:10]} 9. Bd3 {[%clk 0:03:08.9]} 9... Bxd3 {[%clk 0:03:11.4]} 10. Qxd3
{[%clk 0:03:09.8]} 10... e6 {[%clk 0:03:13.3]} 11. Bd2 {[%clk 0:03:08.7]} 11...
Ngf6 {[%clk 0:03:13.5]} 12. O-O-O {[%clk 0:03:08.2]} 12... Be7 {[%clk
0:03:15.1]} 13. Qe2 {[%clk 0:03:05.7]} 13... c5 {[%clk 0:03:03.7]} 14. dxc5
{[%clk 0:02:56.7]} 14... Nxc5 {[%clk 0:02:48.1]} 15. Ne5 {[%clk 0:02:47.3]}
15... Qb6 {[%clk 0:02:42.8]} 16. Rh4 {[%clk 0:02:19.3]} 16... Nd5 {[%clk
0:02:31.3]} 17. Rg4 {[%clk 0:02:16.6]} 17... Bf6 {[%clk 0:02:26.2]} 18. Nc4
{[%clk 0:02:01.6]} 18... Qa6 {[%clk 0:01:56.7]} 19. Kb1 {[%clk 0:01:56.9]} 19...
Rc8 {[%clk 0:01:42.9]} 20. Nf5 {[%clk 0:01:51.6]} 20... Kf8 {[%clk 0:00:55.3]}
21. Nfd6 {[%clk 0:01:20.8]} 21... Rc6 {[%clk 0:00:43.2]} 22. Ne4 {[%clk
0:01:10.6]} 22... Bxb2 {[%clk 0:00:36.1]} 23. Nxc5 {[%clk 0:00:55.4]} 23... Rxc5
{[%clk 0:00:31.6]} 24. Kxb2 {[%clk 0:00:54.8]} 24... f5 {[%clk 0:00:21]} 25. Rd4
{[%clk 0:00:49.1]} 25... Rb5+ {[%clk 0:00:12.7]} 26. Ka1 {[%clk 0:00:47.1]}
26... Kf7 {[%clk 0:00:13.7]} 27. Nd6+ {[%clk 0:00:45.7]} 27... Kf6 {[%clk
0:00:08.3]} 28. Nxb5 {[%clk 0:00:44.8]} 28... Rc8 {[%clk 0:00:07.7]} 29. Qd3
{[%clk 0:00:38.2]} 29... Qc6 {[%clk 0:00:03.3]} 30. c4 {[%clk 0:00:35]} 30...
Nb6 {[%clk 0:00:02.4]} 31. Rd6 {[%clk 0:00:31.8]} 31... Qc5 {[%clk 0:00:03.3]}
32. Bc3+ {[%clk 0:00:31.4]} 32... Kf7 {[%clk 0:00:04.2]} 33. Rd7+ {[%clk
0:00:29.9]} 33... Kg8 {[%clk 0:00:05]} 34. Rxg7+ {[%clk 0:00:30.5]} 34... Kf8
{[%clk 0:00:05.5]} 35. Qd6+ {[%clk 0:00:28.4]} 35... Qxd6 {[%clk 0:00:06.4]} 36.
Nxd6 {[%clk 0:00:29.3]} 36... Rd8 {[%clk 0:00:07.7]} 37. Rf7+ {[%clk 0:00:28.5]}
37... Kg8 {[%clk 0:00:09.2]} 38. Re7 {[%clk 0:00:25.6]} 38... Nxc4 {[%clk
0:00:09.9]} 39. Rxe6 {[%clk 0:00:26.6]} 39... Nb6 {[%clk 0:00:10.1]} 40. Rd3
{[%clk 0:00:26.9]} 40... Nd7 {[%clk 0:00:09.8]} 41. Rg3+ {[%clk 0:00:27.7]}
41... Kf8 {[%clk 0:00:11.1]} 42. Bg7+ {[%clk 0:00:26.5]} 42... Kg8 {[%clk
0:00:12.2]} 43. Bf6+ {[%clk 0:00:26.1]} 43... Kf8 {[%clk 0:00:13.2]} 44. Be7#
{[%clk 0:00:26.9]} 1-0

[Event "*** Qualifier 3: Titled Tuesday 3|2 Blitz"]
[Site "Chess.com"]
[Date "2017.04.18"]
[Round "8"]
[White "GamayevOleg"]
[Black "GianmarcoVaR"]
[Result "0-1"]
[WhiteElo "2401"]
[BlackElo "2472"]
[TimeControl "180+2"]
[EndTime "14:47:33 PDT"]
[Termination "GianmarcoVaR won by resignation"]

1. d3 {[%clk 0:03:01.9]} 1... Nf6 {[%clk 0:03:00.2]} 2. e4 {[%clk 0:03:03.8]}
2... c5 {[%clk 0:03:00.5]} 3. Nf3 {[%clk 0:03:05]} 3... Nc6 {[%clk 0:03:01.4]}
4. c3 {[%clk 0:03:06.4]} 4... g6 {[%clk 0:03:02.4]} 5. a4 {[%clk 0:03:07.1]}
5... Bg7 {[%clk 0:03:03.6]} 6. Be2 {[%clk 0:03:08.6]} 6... O-O {[%clk
0:03:04.7]} 7. O-O {[%clk 0:03:09.6]} 7... d6 {[%clk 0:03:05.3]} 8. h3 {[%clk
0:03:11]} 8... c4 {[%clk 0:03:06.1]} 9. d4 {[%clk 0:03:08.2]} 9... Nxe4 {[%clk
0:03:06.9]} 10. Bxc4 {[%clk 0:03:09.3]} 10... d5 {[%clk 0:03:06.9]} 11. Bd3
{[%clk 0:03:10.6]} 11... Nd6 {[%clk 0:03:00.4]} 12. Nbd2 {[%clk 0:03:09.3]}
12... Bf5 {[%clk 0:03:00.5]} 13. Bxf5 {[%clk 0:03:09.5]} 13... Nxf5 {[%clk
0:03:01.4]} 14. Re1 {[%clk 0:03:11.4]} 14... e6 {[%clk 0:02:54.7]} 15. Qb3
{[%clk 0:03:10.1]} 15... Na5 {[%clk 0:02:54.2]} 16. Qc2 {[%clk 0:03:07.1]} 16...
Rc8 {[%clk 0:02:54.3]} 17. Qd3 {[%clk 0:03:07.8]} 17... Qb6 {[%clk 0:02:53.9]}
18. Re2 {[%clk 0:02:20.5]} 18... Rc7 {[%clk 0:02:48.2]} 19. Ne1 {[%clk 0:02:17]}
19... Rfc8 {[%clk 0:02:20.6]} 20. Nc2 {[%clk 0:02:15.1]} 20... Nxd4 {[%clk
0:02:20.6]} 21. Nxd4 {[%clk 0:02:09.3]} 21... Bxd4 {[%clk 0:02:20.7]} 22. Nf3
{[%clk 0:01:35.2]} 22... Bg7 {[%clk 0:02:10.3]} 23. Bf4 {[%clk 0:01:35.6]} 23...
Rc4 {[%clk 0:02:07.9]} 24. Be5 {[%clk 0:01:36.5]} 24... Nb3 {[%clk 0:02:08.2]}
25. Rae1 {[%clk 0:01:28.7]} 25... Nc5 {[%clk 0:01:55.8]} 26. Qd1 {[%clk
0:01:20.1]} 26... Nxa4 {[%clk 0:01:54.5]} 27. Bxg7 {[%clk 0:01:17.3]} 27... Kxg7
{[%clk 0:01:55.3]} 28. Qd2 {[%clk 0:00:55.1]} 28... Nc5 {[%clk 0:01:45.4]} 29.
Nd4 {[%clk 0:00:53]} 29... Nb3 {[%clk 0:01:45.5]} 30. Nxb3 {[%clk 0:00:46]}
30... Qxb3 {[%clk 0:01:46.3]} 31. h4 {[%clk 0:00:47.9]} 31... Rxh4 {[%clk
0:01:45.3]} 32. g3 {[%clk 0:00:49.3]} 32... Rhc4 {[%clk 0:01:41.6]} 33. Qg5
{[%clk 0:00:45.9]} 33... Qb6 {[%clk 0:01:35.2]} 34. Kg2 {[%clk 0:00:37.4]} 34...
d4 {[%clk 0:01:35.7]} 35. Rh1 {[%clk 0:00:34.5]} 35... Qc6+ {[%clk 0:01:30.9]}
36. Kg1 {[%clk 0:00:34.5]} 36... dxc3 {[%clk 0:01:01.9]} 37. bxc3 {[%clk
0:00:32.5]} 37... Rxc3 {[%clk 0:01:00.2]} 38. Qh6+ {[%clk 0:00:32.9]} 38... Kg8
{[%clk 0:01:01.2]} 39. Qxh7+ {[%clk 0:00:29.2]} 39... Kf8 {[%clk 0:01:02.6]} 40.
Kh2 {[%clk 0:00:27.8]} 40... Qf3 {[%clk 0:00:54.7]} 41. Rd2 {[%clk 0:00:18.3]}
41... R3c5 {[%clk 0:00:47.9]} 42. g4 {[%clk 0:00:09.5]} 42... Qf4+ {[%clk
0:00:47.3]} 43. Kg2 {[%clk 0:00:08.7]} 43... Qxg4+ {[%clk 0:00:47.7]} 44. Kf1
{[%clk 0:00:06.6]} 44... Rc1+ {[%clk 0:00:47.8]} 0-1

[Event "*** Qualifier 3: Titled Tuesday 3|2 Blitz"]
[Site "Chess.com"]
[Date "2017.04.18"]
[Round "8"]
[White "oskariot"]
[Black "Cryptochess"]
[Result "0-1"]
[WhiteElo "2437"]
[BlackElo "2473"]
[TimeControl "180+2"]
[EndTime "14:47:58 PDT"]
[Termination "Cryptochess won on time"]

1. b3 {[%clk 0:03:02]} 1... Nf6 {[%clk 0:03:00.1]} 2. Bb2 {[%clk 0:03:03]} 2...
e6 {[%clk 0:03:01.4]} 3. e3 {[%clk 0:03:03.9]} 3... d5 {[%clk 0:03:03]} 4. Nf3
{[%clk 0:03:04.8]} 4... c5 {[%clk 0:03:04.6]} 5. c4 {[%clk 0:03:05.6]} 5... Nc6
{[%clk 0:03:06.1]} 6. Be2 {[%clk 0:03:05.5]} 6... Be7 {[%clk 0:03:07.4]} 7. O-O
{[%clk 0:03:06.3]} 7... O-O {[%clk 0:03:09]} 8. cxd5 {[%clk 0:03:07.2]} 8...
Nxd5 {[%clk 0:03:08.3]} 9. a3 {[%clk 0:03:04.5]} 9... b6 {[%clk 0:03:09.2]} 10.
Qc2 {[%clk 0:03:05.3]} 10... Bb7 {[%clk 0:03:09.8]} 11. d3 {[%clk 0:03:06.8]}
11... Rc8 {[%clk 0:03:10.3]} 12. Nbd2 {[%clk 0:03:08.4]} 12... Bf6 {[%clk
0:03:10.6]} 13. Rac1 {[%clk 0:03:09.5]} 13... Bxb2 {[%clk 0:03:09.7]} 14. Qxb2
{[%clk 0:03:11.4]} 14... Qe7 {[%clk 0:03:09.8]} 15. Rc2 {[%clk 0:03:07.4]} 15...
Rfd8 {[%clk 0:03:10.6]} 16. Rfc1 {[%clk 0:03:08.5]} 16... e5 {[%clk 0:03:07.2]}
17. Nc4 {[%clk 0:02:50]} 17... f6 {[%clk 0:03:05]} 18. h3 {[%clk 0:02:42.7]}
18... e4 {[%clk 0:02:54.1]} 19. dxe4 {[%clk 0:02:40.9]} 19... Qxe4 {[%clk
0:02:56]} 20. Rd1 {[%clk 0:02:27.4]} 20... Nce7 {[%clk 0:02:24.4]} 21. Rcd2
{[%clk 0:02:24.4]} 21... Ba8 {[%clk 0:02:10.3]} 22. Bd3 {[%clk 0:01:52.8]} 22...
Qe6 {[%clk 0:02:03.6]} 23. Qc2 {[%clk 0:01:54.1]} 23... g6 {[%clk 0:01:53.4]}
24. Be2 {[%clk 0:01:49.8]} 24... Rf8 {[%clk 0:01:38.3]} 25. Nb2 {[%clk
0:01:30.8]} 25... Kg7 {[%clk 0:01:25]} 26. Bc4 {[%clk 0:01:24]} 26... f5 {[%clk
0:01:20.9]} 27. Nd3 {[%clk 0:01:16.3]} 27... Qf6 {[%clk 0:01:18.7]} 28. Nde5
{[%clk 0:01:15]} 28... Rcd8 {[%clk 0:01:14.5]} 29. h4 {[%clk 0:00:42.3]} 29...
h6 {[%clk 0:01:13.8]} 30. Qc1 {[%clk 0:00:31.1]} 30... Rd6 {[%clk 0:01:09.3]}
31. Bb5 {[%clk 0:00:28.3]} 31... Rfd8 {[%clk 0:01:02.1]} 32. Bf1 {[%clk
0:00:23.2]} 32... g5 {[%clk 0:00:49.9]} 33. hxg5 {[%clk 0:00:24.2]} 33... hxg5
{[%clk 0:00:51.8]} 34. Nc4 {[%clk 0:00:19.6]} 34... Re6 {[%clk 0:00:49.7]} 35.
Qb2 {[%clk 0:00:14.4]} 35... g4 {[%clk 0:00:44.2]} 36. Ng5 {[%clk 0:00:14.2]}
36... Rc6 {[%clk 0:00:36.3]} 37. Qxf6+ {[%clk 0:00:14.6]} 37... Kxf6 {[%clk
0:00:34.2]} 38. e4 {[%clk 0:00:08.4]} 38... Kxg5 {[%clk 0:00:28.8]} 39. exd5
{[%clk 0:00:02.9]} 39... Rh6 {[%clk 0:00:30]} 40. d6 {[%clk 0:00:04.3]} 40...
Rdh8 {[%clk 0:00:29.3]} 0-1

[Event "*** Qualifier 3: Titled Tuesday 3|2 Blitz"]
[Site "Chess.com"]
[Date "2017.04.18"]
[Round "8"]
[White "fastestmindalive"]
[Black "RaphaeI"]
[Result "1-0"]
[WhiteElo "2438"]
[BlackElo "2396"]
[TimeControl "180+2"]
[EndTime "14:48:10 PDT"]
[Termination "fastestmindalive won on time"]

1. e4 {[%clk 0:03:02]} 1... c5 {[%clk 0:02:58.7]} 2. Nc3 {[%clk 0:03:00.1]} 2...
Nc6 {[%clk 0:02:59.1]} 3. Bb5 {[%clk 0:02:43.6]} 3... Nd4 {[%clk 0:02:59.9]} 4.
Nf3 {[%clk 0:02:44]} 4... a6 {[%clk 0:03:00.2]} 5. Bd3 {[%clk 0:02:41.1]} 5...
g6 {[%clk 0:02:58.9]} 6. Nxd4 {[%clk 0:02:41.6]} 6... cxd4 {[%clk 0:03:00.8]} 7.
Ne2 {[%clk 0:02:43.5]} 7... Bg7 {[%clk 0:03:02.3]} 8. c3 {[%clk 0:02:44.5]} 8...
d5 {[%clk 0:02:18]} 9. cxd4 {[%clk 0:02:19.3]} 9... dxe4 {[%clk 0:02:13.5]} 10.
Bxe4 {[%clk 0:02:21.2]} 10... Nh6 {[%clk 0:01:40.6]} 11. Qa4+ {[%clk 0:02:00]}
11... b5 {[%clk 0:01:31]} 12. Qb3 {[%clk 0:01:57.5]} 12... Rb8 {[%clk
0:01:24.5]} 13. d3 {[%clk 0:01:52.9]} 13... Nf5 {[%clk 0:01:18.9]} 14. d5 {[%clk
0:01:47.6]} 14... O-O {[%clk 0:01:13.3]} 15. O-O {[%clk 0:01:47.7]} 15... Bb7
{[%clk 0:01:05.5]} 16. Bf4 {[%clk 0:01:43]} 16... Rc8 {[%clk 0:01:06.6]} 17.
Rac1 {[%clk 0:01:40.1]} 17... Qd7 {[%clk 0:01:08]} 18. Rxc8 {[%clk 0:01:19.7]}
18... Rxc8 {[%clk 0:01:09.9]} 19. Rc1 {[%clk 0:01:20.6]} 19... Rxc1+ {[%clk
0:00:57.7]} 20. Bxc1 {[%clk 0:01:22.5]} 20... a5 {[%clk 0:00:43.5]} 21. h3
{[%clk 0:01:20.3]} 21... a4 {[%clk 0:00:42.4]} 22. Qb4 {[%clk 0:01:20.7]} 22...
Bxd5 {[%clk 0:00:38.4]} 23. b3 {[%clk 0:01:04.8]} 23... axb3 {[%clk 0:00:38.1]}
24. axb3 {[%clk 0:01:06.7]} 24... h5 {[%clk 0:00:34.4]} 25. Nc3 {[%clk
0:01:03.4]} 25... Bc6 {[%clk 0:00:23.6]} 26. Bb2 {[%clk 0:00:49.5]} 26... h4
{[%clk 0:00:19.5]} 27. Qc5 {[%clk 0:00:46.9]} 27... Nd4 {[%clk 0:00:12]} 28.
Bxc6 {[%clk 0:00:45.5]} 28... Qxc6 {[%clk 0:00:13.3]} 29. Qxe7 {[%clk
0:00:35.5]} 29... Nxb3 {[%clk 0:00:13.4]} 30. Qd8+ {[%clk 0:00:36.7]} 30... Kh7
{[%clk 0:00:10.3]} 31. Qxh4+ {[%clk 0:00:37.9]} 31... Kg8 {[%clk 0:00:11.6]} 32.
Qd8+ {[%clk 0:00:29.3]} 32... Kh7 {[%clk 0:00:12.7]} 33. Qh4+ {[%clk 0:00:14.4]}
33... Kg8 {[%clk 0:00:13.8]} 34. Qb4 {[%clk 0:00:14.8]} 34... Nd4 {[%clk
0:00:10.9]} 35. Ne4 {[%clk 0:00:11.9]} 35... Ne2+ {[%clk 0:00:08.3]} 36. Kh2
{[%clk 0:00:13.2]} 36... Qc7+ {[%clk 0:00:07.9]} 37. g3 {[%clk 0:00:14.5]} 37...
Qc2 {[%clk 0:00:04.4]} 38. Bxg7 {[%clk 0:00:13.5]} 38... Kxg7 {[%clk 0:00:06.3]}
39. Qxb5 {[%clk 0:00:14.4]} 39... Nc1 {[%clk 0:00:03.8]} 40. Qe5+ {[%clk
0:00:14.6]} 40... Kf8 {[%clk 0:00:05.3]} 41. Qd6+ {[%clk 0:00:15]} 41... Kg7
{[%clk 0:00:05.7]} 42. Qf6+ {[%clk 0:00:16]} 42... Kg8 {[%clk 0:00:04.5]} 43.
Ng5 {[%clk 0:00:15.3]} 43... Nxd3 {[%clk 0:00:02.7]} 44. Qxf7+ {[%clk
0:00:16.4]} 1-0

[Event "*** Qualifier 3: Titled Tuesday 3|2 Blitz"]
[Site "Chess.com"]
[Date "2017.04.18"]
[Round "8"]
[White "MyleneFarmer"]
[Black "Ilja_Semjonovs"]
[Result "0-1"]
[WhiteElo "2325"]
[BlackElo "2209"]
[TimeControl "180+2"]
[EndTime "14:48:53 PDT"]
[Termination "Ilja_Semjonovs won on time"]

1. c3 {[%clk 0:03:02]} 1... c5 {[%clk 0:02:43.9]} 2. f3 {[%clk 0:03:01.8]} 2...
Nf6 {[%clk 0:02:44.4]} 3. g3 {[%clk 0:03:02.6]} 3... d5 {[%clk 0:02:45.2]} 4. b3
{[%clk 0:03:04]} 4... Nc6 {[%clk 0:02:45.1]} 5. Nh3 {[%clk 0:03:04.1]} 5... e5
{[%clk 0:02:45.5]} 6. Nf2 {[%clk 0:03:05]} 6... Be7 {[%clk 0:02:46.5]} 7. Bg2
{[%clk 0:03:06.5]} 7... O-O {[%clk 0:02:47.5]} 8. e3 {[%clk 0:03:08.1]} 8... d4
{[%clk 0:02:48.2]} 9. Bb2 {[%clk 0:03:02.8]} 9... a5 {[%clk 0:02:42.9]} 10. Qe2
{[%clk 0:02:58.7]} 10... a4 {[%clk 0:02:41.1]} 11. Na3 {[%clk 0:02:45.7]} 11...
Be6 {[%clk 0:02:34.5]} 12. c4 {[%clk 0:02:26.8]} 12... axb3 {[%clk 0:02:26.1]}
13. axb3 {[%clk 0:02:27.6]} 13... Qb6 {[%clk 0:02:26.2]} 14. O-O {[%clk
0:02:11.6]} 14... Qxb3 {[%clk 0:02:15.1]} 15. Rfb1 {[%clk 0:02:12.4]} 15... Qa4
{[%clk 0:02:05.7]} 16. Bf1 {[%clk 0:01:57.5]} 16... Qa5 {[%clk 0:01:44.1]} 17.
Nb5 {[%clk 0:01:50.5]} 17... Qb6 {[%clk 0:01:41.8]} 18. Ba3 {[%clk 0:01:45.5]}
18... Qd8 {[%clk 0:01:42.4]} 19. Nd3 {[%clk 0:01:40.1]} 19... b6 {[%clk
0:01:37.5]} 20. Nf2 {[%clk 0:01:16]} 20... Qd7 {[%clk 0:01:35.3]} 21. g4 {[%clk
0:00:52.5]} 21... h6 {[%clk 0:01:31.7]} 22. h4 {[%clk 0:00:53.2]} 22... Ne8
{[%clk 0:01:28.8]} 23. h5 {[%clk 0:00:53.9]} 23... Nc7 {[%clk 0:01:25.5]} 24.
Nxc7 {[%clk 0:00:41.3]} 24... Qxc7 {[%clk 0:01:26.3]} 25. Bg2 {[%clk 0:00:35.6]}
25... Ra7 {[%clk 0:01:09.5]} 26. Bb2 {[%clk 0:00:33.4]} 26... Rfa8 {[%clk
0:01:06]} 27. Rxa7 {[%clk 0:00:32.7]} 27... Rxa7 {[%clk 0:01:06.9]} 28. Ra1
{[%clk 0:00:33.5]} 28... Rxa1+ {[%clk 0:01:06.8]} 29. Bxa1 {[%clk 0:00:35.4]}
29... Na5 {[%clk 0:01:07.6]} 30. d3 {[%clk 0:00:31.6]} 30... Qd7 {[%clk
0:01:05.1]} 31. exd4 {[%clk 0:00:28.1]} 31... exd4 {[%clk 0:01:03.9]} 32. Bb2
{[%clk 0:00:22.7]} 32... Bg5 {[%clk 0:00:55.3]} 33. f4 {[%clk 0:00:13.6]} 33...
Bxf4 {[%clk 0:00:52.8]} 34. Qe4 {[%clk 0:00:14.9]} 34... Be3 {[%clk 0:00:51.3]}
35. Qa8+ {[%clk 0:00:13.8]} 35... Qc8 {[%clk 0:00:51.4]} 36. Qxc8+ {[%clk
0:00:07.5]} 36... Bxc8 {[%clk 0:00:51.6]} 37. Bf3 {[%clk 0:00:08.3]} 37... Nb3
{[%clk 0:00:45.5]} 38. Kg2 {[%clk 0:00:08.3]} 38... Nd2 {[%clk 0:00:42.1]} 39.
Be2 {[%clk 0:00:05.7]} 39... Bb7+ {[%clk 0:00:41.7]} 40. Kg3 {[%clk 0:00:06.2]}
40... Nb3 {[%clk 0:00:38.4]} 41. Ne4 {[%clk 0:00:06]} 41... Bxe4 {[%clk
0:00:34.7]} 42. dxe4 {[%clk 0:00:07.9]} 42... Kf8 {[%clk 0:00:32.9]} 43. e5
{[%clk 0:00:09.1]} 43... Ke7 {[%clk 0:00:33.2]} 44. Kf3 {[%clk 0:00:10.7]} 44...
Nd2+ {[%clk 0:00:33.2]} 45. Kg3 {[%clk 0:00:11.4]} 45... Ne4+ {[%clk 0:00:25.9]}
46. Kf3 {[%clk 0:00:12.5]} 46... Ng5+ {[%clk 0:00:26.8]} 47. Kg3 {[%clk
0:00:13.8]} 47... Ne6 {[%clk 0:00:25.1]} 48. Bf3 {[%clk 0:00:14.6]} 48... Bf4+
{[%clk 0:00:24.9]} 49. Kg2 {[%clk 0:00:16.1]} 49... Bxe5 {[%clk 0:00:26.4]} 50.
Bc6 {[%clk 0:00:17.4]} 50... Kd6 {[%clk 0:00:26]} 51. Kf3 {[%clk 0:00:18.4]}
51... Kxc6 {[%clk 0:00:26.6]} 52. Ke4 {[%clk 0:00:16.4]} 52... Bf6 {[%clk
0:00:27.4]} 53. Kf5 {[%clk 0:00:17]} 53... b5 {[%clk 0:00:25.5]} 54. cxb5+
{[%clk 0:00:17.7]} 54... Kxb5 {[%clk 0:00:26.4]} 55. Bc1 {[%clk 0:00:19.6]}
55... c4 {[%clk 0:00:26.4]} 0-1